fUST/lending_fUST_20250604
["ID","MTS","AMOUNT","RATE_DAILY","PERIOD"]
[364119727,1749011437746,-466.0423102,0.00021426,2]
[364119728,1749011437756,-456.62984661,0.00021426,2]
[364119729,1749011437765,-284.66905361,0.00021426,2]
[364119730,1749011437776,-441.69828613,0.00021426,2]
[364119731,1749011437786,-440.0,0.00021426,2]
[364119732,1749011437796,-479.97705241,0.00021426,2]
[364119733,1749011437806,-481.5634811,0.00021426,2]
[364119734,1749011437815,-442.79438244,0.00021426,2]
[364119735,1749011437826,-458.59034093,0.00021426,2]
[364119736,1749011437837,-470.95895602,0.00021426,2]
[364119737,1749011437847,-459.98626137,0.00021426,2]
[364119738,1749011437857,-463.76242827,0.00021426,2]
[364119739,1749011437867,-545.78717943,0.00021426,2]
[364119740,1749011437876,-442.78149859,0.00021426,2]
[364119741,1749011437885,-440.0,0.00021426,2]
[364119742,1749011437894,-440.0,0.00021426,2]
[364119743,1749011437903,-440.0,0.00021426,2]
[364119744,1749011437911,-294.56826226,0.00021426,2]
[364119745,1749011437920,-440.0,0.00021426,2]
[364119746,1749011437928,-460.7062192,0.00021426,2]
[364119747,1749011437937,-430.0,0.00021426,2]
[364119748,1749011437947,-430.0,0.00021426,2]
[364119749,1749011437956,-572.71379207,0.00021426,2]
[364119750,1749011437965,-477.35436252,0.00021426,2]
[364119751,1749011437974,-476.1567394,0.00021426,2]
[364119752,1749011437984,-440.0,0.00021426,2]
[364119753,1749011437993,-443.36372963,0.00021426,2]
[364119754,1749011438004,-440.56985517,0.00021426,2]
[364119755,1749011438013,-1000.0,0.00021427,2]
[364119756,1749011438023,-907.84263252,0.00021452,5]
[364119758,1749011438033,-907.84263252,0.0002159,5]
[364119760,1749011438042,-438.44,0.00021632,3]
[364119762,1749011438052,-440.0,0.00021639,2]
[364119764,1749011438061,-440.0,0.00021639,2]
[364119766,1749011438071,-440.0,0.0002164,2]
[364119768,1749011438080,-440.0,0.0002164,2]
[364119770,1749011438089,-440.0,0.0002164,2]
[364119772,1749011438099,-551.52060736,0.0002164,2]
[364119774,1749011438107,-440.0,0.0002164,2]
[364119776,1749011438117,-440.0,0.0002164,2]
[364119778,1749011438127,-440.0,0.00021642,2]
[364119780,1749011438136,-440.0,0.00021642,2]
[364119782,1749011438146,-440.0,0.00021642,2]
[364119784,1749011438155,-440.0,0.00021642,2]
[364119786,1749011438164,-500.0,0.00021699,2]
[364119788,1749011438173,-500.0,0.00021699,2]
[364119790,1749011438183,-420.0,0.000217,2]
[364119792,1749011438192,-461.43472963,0.000217,2]
[364119794,1749011438202,-447.05545894,0.000217,2]
[364119796,1749011438211,-493.74492847,0.000217,2]
[364119798,1749011438221,-420.0,0.000217,2]
[364119800,1749011438231,-220.817204,0.000217,2]
[364119802,1749011438240,-151.60157415,0.00021712,2]
[364119804,1749011438250,-14677.5270861,0.00021713,3]
[364119806,1749011438264,-146002.08898427,0.00021714,2]
[364119839,1749011438570,-253.197739,0.00019207,2]
[364119841,1749011438580,-423.69433488,0.00019995,2]
[364119843,1749011438590,-440.0,0.0002027,2]
[364119845,1749011438599,-410.0,0.00020544,2]
[364119847,1749011438609,-935223.35391573,0.00021714,2]
[364119849,1749011438619,-158.96371546,0.00021715,2]
[364119851,1749011438628,-207.4,0.00021715,2]
[364119853,1749011438638,-500.0,0.00021715,2]
[364119855,1749011438647,-500.0,0.00021715,2]
[364119857,1749011438657,-500.0,0.00021715,2]
[364119859,1749011438667,-500.0,0.00021715,2]
[364119861,1749011438676,-500.0,0.00021715,2]
[364119863,1749011438684,-500.0,0.00021715,2]
[364119865,1749011438694,-500.0,0.00021715,2]
[364119867,1749011438703,-500.0,0.00021715,2]
[364119869,1749011438713,-500.0,0.00021715,2]
[364119871,1749011438723,-500.0,0.00021715,2]
[364119873,1749011438732,-500.0,0.00021715,2]
[364119874,1749011438742,-500.0,0.00021715,2]
[364119875,1749011438752,-500.0,0.00021715,2]
[364119876,1749011438762,-500.0,0.00021715,2]
[364119877,1749011438773,-500.0,0.00021715,2]
[364119878,1749011438784,-500.0,0.00021715,2]
[364119879,1749011438793,-500.0,0.00021715,2]
[364119880,1749011438803,-500.0,0.00021715,2]
[364119881,1749011438812,-500.0,0.00021715,2]
[364119882,1749011438822,-500.0,0.00021715,2]
[364119883,1749011438831,-500.0,0.00021715,2]
[364119884,1749011438841,-500.0,0.00021715,2]
[364119885,1749011438850,-500.0,0.00021715,2]
[364119886,1749011438859,-500.0,0.00021715,2]
[364119887,1749011438869,-500.0,0.00021715,2]
[364119888,1749011438879,-500.0,0.00021715,2]
[364119889,1749011438888,-500.0,0.00021715,2]
[364119890,1749011438897,-5054.85483841,0.00021715,2]
[364119891,1749011438906,-500.0,0.00021715,2]
[364119893,1749011438915,-500.0,0.00021715,2]
[364119895,1749011438924,-500.0,0.00021715,2]
[364119897,1749011438934,-907.84263252,0.00021728,5]
[364119899,1749011438943,-503.08622429,0.0002175,2]
[364119901,1749011438952,-501.42773415,0.0002175,2]
[364119903,1749011438962,-508.5924951,0.0002175,2]
[364119905,1749011438971,-500.0,0.0002175,2]
[364119907,1749011438980,-500.0,0.0002175,2]
[364119909,1749011438990,-502.74318003,0.0002175,2]
[364119911,1749011438999,-501.56597515,0.0002175,2]
[364119913,1749011439008,-500.8346626,0.0002175,2]
[364119914,1749011439017,-500.0,0.0002175,2]
[364119917,1749011439027,-240.03354149,0.0002175,2]
[364119918,1749011439037,-500.0,0.0002175,2]
[364119920,1749011439047,-500.0,0.0002175,2]
[364119922,1749011439056,-501.21357946,0.0002175,2]
[364119924,1749011439066,-501.5856008,0.0002175,2]
[364119926,1749011439076,-500.0,0.0002175,2]
[364119928,1749011439085,-326.01569977,0.0002175,2]
[364119930,1749011439095,-507.13900201,0.0002175,2]
[364119932,1749011439106,-501.07588045,0.0002175,2]
[364119935,1749011439117,-562.1613533,0.0002175,2]
[364119937,1749011439126,-160.27885716,0.0002175,2]
[364119939,1749011439136,-272.30049918,0.0002175,2]
[364119952,1749011439249,-188.89213777,0.0002175,2]
[364119954,1749011439263,-501.62633866,0.0002175,2]
[364119956,1749011439272,-1500.0,0.00021835,2]
[364119958,1749011439282,-907.84263252,0.00021866,6]
[364119960,1749011439292,-440.0,0.00021913,2]
[364119963,1749011439302,-440.0,0.00021913,2]
[364119964,1749011439312,-440.0,0.00021914,2]
[364119967,1749011439322,-440.0,0.00021914,2]
[364119968,1749011439332,-440.0,0.00021914,2]
[364119971,1749011439341,-440.0,0.00021914,2]
[364119972,1749011439350,-360.0,0.00021914,2]
[364119974,1749011439360,-440.0,0.00021916,2]
[364119977,1749011439372,-440.0,0.00021916,2]
[364119978,1749011439381,-440.0,0.00021916,2]
[364119980,1749011439391,-440.0,0.00021916,2]
[364119982,1749011439400,-17407.54726509,0.00022,7]
[364120141,1749011440929,-14.33929179,0.00021713,2]
[364122849,1749011470104,629.3,0.00024,120]
[364124381,1749011852302,200.0,0.00024,120]
[364124382,1749012328594,300.0,0.00024,120]
[364124384,1749012398237,222.856242,0.00013699,2]
[364124473,1749012632546,-5000.0,0.0001816,2]
[364124474,1749012632555,-1156.0430577,0.00018308,2]
[364124475,1749012632565,-253.1977396,0.00018344,2]
[364124476,1749012632573,-1025.5815348,0.00018391,2]
[364124477,1749012632583,-1193.4760906,0.00018711,2]
[364124478,1749012632592,-460.041645,0.00018736,2]
[364124479,1749012632601,-1015.4520939,0.0001882,2]
[364124481,1749012632610,-783.64012607,0.00018895,2]
[364124483,1749012632619,-193.7399695,0.00018995,2]
[364124485,1749012632628,-151.0,0.00019178,2]
[364124487,1749012632638,-171.788975,0.00019178,2]
[364124489,1749012632647,-2847.58807306,0.00019178,2]
[364124491,1749012632656,-208.0,0.00019178,3]
[364124493,1749012632665,-156.587,0.00019233,2]
[364124495,1749012632673,-162.38071901,0.00019288,2]
[364124497,1749012632682,-212.90465545,0.00019311,2]
[364124499,1749012632691,-160.0,0.00019311,2]
[364124501,1749012632704,-160.0,0.00019311,2]
[364124503,1749012632713,-867.07648767,0.000199,2]
[364124505,1749012632722,-440.0,0.00019991,2]
[364124507,1749012632731,-440.0,0.00019991,2]
[364124509,1749012632740,-430.0,0.00019991,2]
[364124511,1749012632750,-439.54914679,0.00019991,2]
[364124513,1749012632759,-464.23529652,0.00019991,2]
[364124515,1749012632768,-440.0,0.00019991,2]
[364124517,1749012632777,-440.0,0.00019991,2]
[364124519,1749012632786,-440.0,0.00019991,2]
[364124521,1749012632795,-440.0,0.00019991,2]
[364124523,1749012632810,-842.5625,0.00019991,2]
[364124525,1749012632820,-160.0,0.00019991,2]
[364124528,1749012632829,-160.0,0.00019991,2]
[364124529,1749012632839,-229.45591648,0.00019991,2]
[364124531,1749012632849,-440.0,0.00019992,2]
[364124533,1749012632858,-440.0,0.00019992,2]
[364124534,1749012632868,-440.0,0.00019992,2]
[364124535,1749012632878,-440.0,0.00019992,2]
[364124536,1749012632887,-440.0,0.00019992,2]
[364124537,1749012632896,-440.0,0.00019992,2]
[364124538,1749012632904,-455.06575181,0.00019992,2]
[364124539,1749012632912,-443.47805655,0.00019992,2]
[364124540,1749012632922,-440.0,0.00019992,2]
[364124541,1749012632933,-440.0,0.00019992,2]
[364124542,1749012632943,-440.0,0.00019992,2]
[364124543,1749012632954,-430.0,0.00019992,2]
[364124544,1749012632963,-440.0,0.00019992,2]
[364124545,1749012632974,-440.0,0.00019992,2]
[364124546,1749012632984,-440.0,0.00019992,2]
[364124547,1749012632994,-440.0,0.00019992,2]
[364124548,1749012633004,-445.8948729,0.00019992,2]
[364124549,1749012633014,-440.0,0.00019992,2]
[364124550,1749012633024,-464.47897375,0.00019992,2]
[364124551,1749012633034,-440.0,0.00019992,2]
[364124552,1749012633210,-445.88065962,0.00019992,2]
[364124553,1749012633221,-440.0,0.00019992,2]
[364124554,1749012633231,-440.0,0.00019992,2]
[364124555,1749012633241,-456.6039555,0.00019992,2]
[364124556,1749012633251,-440.0,0.00019992,2]
[364124557,1749012633261,-440.0,0.00019992,2]
[364124558,1749012633271,-440.0,0.00019992,2]
[364124559,1749012633280,-440.0,0.00019992,2]
[364124560,1749012633290,-440.0,0.00019992,2]
[364124561,1749012633300,-430.0,0.00019992,2]
[364124562,1749012633310,-440.0,0.00019992,2]
[364124563,1749012633319,-293.12608196,0.00019992,2]
[364124564,1749012633330,-448.48024984,0.00019992,2]
[364124565,1749012633339,-440.0,0.00019992,2]
[364124566,1749012633349,-430.0,0.00019992,2]
[364124567,1749012633359,-440.0,0.00019992,2]
[364124568,1749012633369,-433.84417885,0.00019992,2]
[364124569,1749012633380,-440.0,0.00019992,2]
[364124570,1749012633390,-440.0,0.00019992,2]
[364124571,1749012633400,-389.21991705,0.00019992,2]
[364124572,1749012633410,-440.0,0.00019992,2]
[364124573,1749012633420,-425.14537473,0.00019992,2]
[364124574,1749012633430,-440.0,0.00019992,2]
[364124575,1749012633440,-440.0,0.00019992,2]
[364124576,1749012633450,-442.9279037,0.00019992,2]
[364124577,1749012633460,-430.0,0.00019992,2]
[364124578,1749012633470,-441.03720612,0.00019992,2]
[364124579,1749012633479,-439.36941594,0.00019992,2]
[364124580,1749012633489,-447.44944512,0.00019992,2]
[364124581,1749012633499,-441.18660645,0.00019992,2]
[364124582,1749012633508,-440.0,0.00019993,2]
[364124583,1749012633518,-440.0,0.00019993,2]
[364124584,1749012633528,-471.55228999,0.00019993,2]
[364124585,1749012633537,-449.44507541,0.00019993,2]
[364124586,1749012633547,-511.29686665,0.00019993,2]
[364124587,1749012633557,-440.0,0.00019993,2]
[364124588,1749012633566,-440.0,0.00019993,2]
[364124589,1749012633576,-440.96022515,0.00019993,2]
[364124590,1749012633586,-440.0,0.00019993,2]
[364124591,1749012633596,-516.49739776,0.00019993,2]
[364124592,1749012633606,-430.0,0.00019993,2]
[364124593,1749012633616,-440.0,0.00019993,2]
[364124594,1749012633626,-440.0,0.00019993,2]
[364124595,1749012633636,-430.0,0.00019993,2]
[364124596,1749012633646,-430.0,0.00019993,2]
[364124597,1749012633655,-500.0,0.00019993,2]
[364124598,1749012633665,-430.0,0.00019993,2]
[364124599,1749012633675,-440.0,0.00019993,2]
[364124600,1749012633685,-440.0,0.00019993,2]
[364124601,1749012633695,-430.0,0.00019993,2]
[364124602,1749012633705,-440.0,0.00019993,2]
[364124603,1749012633715,-386.25868469,0.00019993,2]
[364124604,1749012633724,-447.31085203,0.00019993,2]
[364124605,1749012633734,-440.0,0.00019993,2]
[364124606,1749012633744,-440.0,0.00019993,2]
[364124607,1749012633754,-440.0,0.00019993,2]
[364124608,1749012633764,-440.0,0.00019993,2]
[364124609,1749012633774,-438.44883724,0.00019993,2]
[364124610,1749012633784,-440.0,0.00019993,2]
[364124611,1749012633793,-440.0,0.00019993,2]
[364124612,1749012633805,-440.0,0.00019993,2]
[364124613,1749012633815,-440.0,0.00019993,2]
[364124614,1749012633825,-440.0,0.00019993,2]
[364124615,1749012633835,-440.0,0.00019993,2]
[364124616,1749012633845,-440.0,0.00019993,2]
[364124617,1749012633855,-440.0,0.00019993,2]
[364124618,1749012633865,-430.0,0.00019993,2]
[364124619,1749012633875,-440.0,0.00019993,2]
[364124620,1749012633885,-440.0,0.00019993,2]
[364124621,1749012633894,-440.0,0.00019993,2]
[364124622,1749012633904,-470.51971962,0.00019993,2]
[364124623,1749012633914,-440.0,0.00019993,2]
[364124624,1749012633924,-440.0,0.00019993,2]
[364124625,1749012633934,-440.0,0.00019993,2]
[364124626,1749012633944,-440.0,0.00019993,2]
[364124627,1749012633954,-440.0,0.00019993,2]
[364124628,1749012633964,-440.0,0.00019993,2]
[364124629,1749012633974,-178.58669825,0.00019993,2]
[364124630,1749012633984,-440.0,0.00019993,2]
[364124631,1749012634004,-440.0,0.00019993,2]
[364124632,1749012634016,-442.01769276,0.00019993,2]
[364124633,1749012634027,-440.0,0.00019993,2]
[364124634,1749012634037,-437.87277171,0.00019993,2]
[364124635,1749012634047,-452.74407641,0.00019993,2]
[364124636,1749012634056,-440.0,0.00019993,2]
[364124637,1749012634067,-440.0,0.00019994,2]
[364124638,1749012634077,-213.45068498,0.00019994,2]
[364124639,1749012634087,-212.59,0.00019994,2]
[364124640,1749012634097,-500.0,0.00019994,2]
[364124641,1749012634107,-500.0,0.00019994,2]
[364124642,1749012634117,-440.0,0.00019994,2]
[364124643,1749012634127,-440.0,0.00019994,2]
[364124644,1749012634137,-440.0,0.00019994,2]
[364124645,1749012634147,-440.0,0.00019994,2]
[364124646,1749012634158,-440.0,0.00019994,2]
[364124647,1749012634168,-440.0,0.00019994,2]
[364124648,1749012634178,-440.0,0.00019994,2]
[364124649,1749012634189,-440.0,0.00019994,2]
[364124650,1749012634199,-440.0,0.00019994,2]
[364124651,1749012634209,-440.0,0.00019994,2]
[364124652,1749012634219,-440.0,0.00019994,2]
[364124653,1749012634229,-440.0,0.00019994,2]
[364124654,1749012634239,-440.0,0.00019994,2]
[364124655,1749012634249,-454.63509797,0.00019995,2]
[364124656,1749012634259,-245.05594619,0.00019995,2]
[364124657,1749012634270,-440.0,0.00019995,2]
[364124658,1749012634280,-447.94003266,0.00019995,2]
[364124659,1749012634290,-440.0,0.00019995,2]
[364124660,1749012634300,-493.63482334,0.00019995,2]
[364124661,1749012634310,-438.67374363,0.00019995,2]
[364124662,1749012634319,-444.50954877,0.00019995,2]
[364124663,1749012634329,-446.1881828,0.00019995,2]
[364124664,1749012634339,-452.04772813,0.00019995,2]
[364124665,1749012634349,-437.64540313,0.00019995,2]
[364124666,1749012634359,-441.41648561,0.00019995,2]
[364124667,1749012634370,-435.11897863,0.00019995,2]
[364124668,1749012634380,-557.98194353,0.00019995,2]
[364124669,1749012634390,-284.13470896,0.00019995,2]
[364124670,1749012634400,-444.95230308,0.00019995,2]
[364124671,1749012634410,-410.00407777,0.00019995,2]
[364124672,1749012634420,-480.03792475,0.00019995,2]
[364124673,1749012634430,-440.0,0.00019995,2]
[364124674,1749012634440,-411.70402427,0.00019995,2]
[364124675,1749012634450,-482.91088288,0.00019995,2]
[364124676,1749012634460,-572.86788712,0.00019995,2]
[364124677,1749012634470,-486.94271388,0.00019995,2]
[364124678,1749012634480,-378.80662149,0.00019995,2]
[364124679,1749012634490,-297.47618959,0.00019995,2]
[364124680,1749012634501,-447.42883138,0.00019995,2]
[364124681,1749012634511,-414.43050531,0.00019995,2]
[364124682,1749012634521,-440.0,0.00019995,2]
[364124683,1749012634533,-440.0,0.00019995,2]
[364124684,1749012634544,-440.0,0.00019995,2]
[364124685,1749012634554,-435.16761535,0.00019995,2]
[364124686,1749012634564,-440.0,0.00019995,2]
[364124687,1749012634574,-440.0,0.00019995,2]
[364124688,1749012634585,-440.0,0.00019995,2]
[364124689,1749012634595,-440.0,0.00019995,2]
[364124690,1749012634605,-432.13039127,0.00019995,2]
[364124691,1749012634618,-440.0,0.00019995,2]
[364124692,1749012634629,-330.99401667,0.00019995,2]
[364124693,1749012634639,-440.0,0.00019995,2]
[364124694,1749012634650,-440.0,0.00019995,2]
[364124695,1749012634660,-181.16769036,0.00019995,2]
[364124696,1749012634670,-440.0,0.00019995,2]
[364124697,1749012634680,-449.59799465,0.00019995,2]
[364124698,1749012634690,-431.80708131,0.00019995,2]
[364124699,1749012634700,-430.0,0.00019995,2]
[364124700,1749012634710,-440.0,0.00019995,2]
[364124701,1749012634720,-440.0,0.00019995,2]
[364124702,1749012634730,-440.0,0.00019995,2]
[364124703,1749012634740,-440.0,0.00019995,2]
[364124704,1749012634750,-440.0,0.00019995,2]
[364124705,1749012634760,-435.30604679,0.00019995,2]
[364124706,1749012634770,-440.98633417,0.00019995,2]
[364124707,1749012634780,-440.0,0.00019995,2]
[364124708,1749012634790,-440.0,0.00019995,2]
[364124709,1749012634799,-440.0,0.00019995,2]
[364124710,1749012634814,-439.3641378,0.00019995,2]
[364124711,1749012634824,-440.54061231,0.00019995,2]
[364124712,1749012634834,-430.0,0.00019995,2]
[364124713,1749012634844,-440.0,0.00019995,2]
[364124714,1749012634855,-440.0,0.00019995,2]
[364124715,1749012634865,-440.0,0.00019995,2]
[364124716,1749012634878,-430.0,0.00019995,2]
[364124717,1749012634888,-440.0,0.00019995,2]
[364124718,1749012634897,-361.30774894,0.00019995,2]
[364124719,1749012634907,-440.0,0.00019995,2]
[364124720,1749012634917,-440.0,0.00019995,2]
[364124721,1749012634927,-430.0,0.00019995,2]
[364124722,1749012634937,-443.05648516,0.00019995,2]
[364124723,1749012634947,-373.63272167,0.00019995,2]
[364124724,1749012634957,-444.86875292,0.00019995,2]
[364124725,1749012634967,-440.0,0.00019995,2]
[364124726,1749012634977,-198.95314702,0.00019995,2]
[364124727,1749012634987,-440.0,0.00019995,2]
[364124728,1749012634997,-440.0,0.00019995,2]
[364124729,1749012635007,-440.0,0.00019995,2]
[364124730,1749012635017,-448.83732581,0.00019995,2]
[364124731,1749012635027,-440.0,0.00019995,2]
[364124732,1749012635037,-440.0,0.00019995,2]
[364124733,1749012635047,-318.03,0.00019995,2]
[364124734,1749012635056,-440.0,0.00019995,2]
[364124735,1749012635066,-430.0,0.00019995,2]
[364124736,1749012635078,-444.53964855,0.00019995,2]
[364124737,1749012635088,-584.02,0.00019995,2]
[364124738,1749012635098,-441.96393305,0.00019995,2]
[364124739,1749012635108,-440.0,0.00019995,2]
[364124740,1749012635118,-594.44691719,0.00019996,2]
[364124741,1749012635127,-172.70159896,0.00019997,2]
[364124742,1749012635137,-440.0,0.00019997,2]
[364124743,1749012635147,-440.0,0.00019997,2]
[364124744,1749012635157,-440.0,0.00019997,2]
[364124745,1749012635167,-440.0,0.00019998,2]
[364124746,1749012635177,-322.29209987,0.00019998,2]
[364124747,1749012635186,-440.0,0.00019998,2]
[364124748,1749012635196,-440.0,0.00019998,2]
[364124749,1749012635206,-440.0,0.00019998,2]
[364124750,1749012635216,-440.0,0.00019998,2]
[364124751,1749012635225,-555.99339746,0.00019998,2]
[364124752,1749012635235,-222.296616,0.00019998,2]
[364124753,1749012635244,-440.0,0.00019998,2]
[364124754,1749012635253,-440.0,0.00019998,2]
[364124755,1749012635263,-440.0,0.00019998,2]
[364124756,1749012635272,-500.0,0.00019998,2]
[364124757,1749012635282,-500.0,0.00020025,2]
[364124758,1749012635291,-500.0,0.00020053,2]
[364124759,1749012635301,-867.07648751,0.00020072,2]
[364124760,1749012635311,-500.0,0.0002008,2]
[364124761,1749012635320,-500.0,0.00020108,2]
[364124762,1749012635330,-500.0,0.00020135,2]
[364124763,1749012635339,-500.0,0.00020162,2]
[364124764,1749012635349,-222.856242,0.00020187,2]
[364124765,1749012635360,-409.39212055,0.0002019,2]
[364124766,1749012635370,-867.07648751,0.00020245,2]
[364124767,1749012635379,-153.08,0.00020257,3]
[364124768,1749012635389,-459.28,0.00020257,3]
[364124769,1749012635398,-306.16,0.00020258,3]
[364124770,1749012635408,-461.38059154,0.00020265,2]
[364124771,1749012635417,-476.98,0.00020265,2]
[364124772,1749012635427,-440.0,0.00020265,2]
[364124773,1749012635437,-440.0,0.00020265,2]
[364124774,1749012635446,-440.0,0.00020265,2]
[364124775,1749012635456,-500.0,0.00020265,2]
[364124776,1749012635465,-440.0,0.00020266,2]
[364124777,1749012635475,-344.0166995,0.00020266,2]
[364124778,1749012635484,-456.06909559,0.00020266,2]
[364124779,1749012635494,-440.0,0.00020266,2]
[364124780,1749012635505,-440.0,0.00020266,2]
[364124781,1749012635514,-440.0,0.00020266,2]
[364124782,1749012635524,-440.0,0.00020266,2]
[364124783,1749012635534,-440.0,0.00020266,2]
[364124784,1749012635544,-440.0,0.00020266,2]
[364124785,1749012635553,-440.0,0.00020266,2]
[364124786,1749012635562,-440.0,0.00020266,2]
[364124787,1749012635572,-440.0,0.00020266,2]
[364124788,1749012635583,-420.0,0.00020266,2]
[364124789,1749012635592,-440.0,0.00020266,2]
[364124790,1749012635602,-440.0,0.00020266,2]
[364124791,1749012635611,-440.0,0.00020266,2]
[364124792,1749012635621,-440.0,0.00020266,2]
[364124793,1749012635631,-440.0,0.00020266,2]
[364124794,1749012635641,-239.90228974,0.00020266,2]
[364124795,1749012635651,-440.0,0.00020266,2]
[364124796,1749012635661,-440.0,0.00020266,2]
[364124797,1749012635671,-440.0,0.00020266,2]
[364124798,1749012635680,-440.0,0.00020266,2]
[364124799,1749012635690,-366.66228101,0.00020266,2]
[364124800,1749012635700,-440.0,0.00020266,2]
[364124801,1749012635710,-440.0,0.00020266,2]
[364124802,1749012635720,-440.0,0.00020266,2]
[364124803,1749012635730,-440.0,0.00020266,2]
[364124804,1749012635740,-440.0,0.00020266,2]
[364124805,1749012635749,-440.0,0.00020266,2]
[364124806,1749012635759,-196.20627243,0.00020267,2]
[364124807,1749012635769,-437.58325611,0.00020267,2]
[364124808,1749012635779,-440.0,0.00020267,2]
[364124809,1749012635789,-538.20320171,0.00020267,2]
[364124810,1749012635922,-440.0,0.00020267,2]
[364124811,1749012635932,-440.0,0.00020267,2]
[364124812,1749012635942,-512.80176838,0.00020267,2]
[364124813,1749012635952,-440.0,0.00020267,2]
[364124814,1749012635962,-440.0,0.00020267,2]
[364124815,1749012635971,-430.42917571,0.00020267,2]
[364124816,1749012635980,-420.0,0.00020267,2]
[364124817,1749012635990,-440.0,0.00020267,2]
[364124818,1749012636000,-440.0,0.00020267,2]
[364124819,1749012636009,-440.0,0.00020267,2]
[364124820,1749012636019,-344.58458225,0.00020267,2]
[364124821,1749012636029,-576.70973206,0.00020267,2]
[364124822,1749012636039,-548.49557761,0.00020267,2]
[364124823,1749012636049,-434.67390775,0.00020267,2]
[364124824,1749012636058,-420.0,0.00020267,2]
[364124825,1749012636068,-440.0,0.00020267,2]
[364124826,1749012636077,-440.0,0.00020267,2]
[364124827,1749012636087,-578.42606361,0.00020267,2]
[364124828,1749012636096,-440.0,0.00020267,2]
[364124829,1749012636106,-440.0,0.00020267,2]
[364124830,1749012636115,-440.0,0.00020267,2]
[364124831,1749012636125,-440.0,0.00020267,2]
[364124832,1749012636134,-420.0,0.00020267,2]
[364124833,1749012636143,-436.76484331,0.00020267,2]
[364124834,1749012636153,-352.24982529,0.00020267,2]
[364124835,1749012636163,-440.0,0.00020267,2]
[364124836,1749012636172,-440.0,0.00020267,2]
[364124837,1749012636182,-440.0,0.00020267,2]
[364124838,1749012636191,-420.0,0.00020267,2]
[364124839,1749012636200,-440.0,0.00020267,2]
[364124840,1749012636210,-420.0,0.00020268,2]
[364124841,1749012636219,-440.0,0.00020268,2]
[364124842,1749012636229,-440.0,0.00020268,2]
[364124843,1749012636238,-420.0,0.00020268,2]
[364124844,1749012636248,-440.0,0.00020268,2]
[364124845,1749012636257,-420.0,0.00020268,2]
[364124846,1749012636267,-420.0,0.00020268,2]
[364124847,1749012636276,-440.0,0.00020268,2]
[364124848,1749012636285,-440.0,0.00020268,2]
[364124849,1749012636294,-440.0,0.00020268,2]
[364124850,1749012636304,-440.0,0.00020268,2]
[364124851,1749012636314,-420.0,0.00020268,2]
[364124852,1749012636324,-440.0,0.00020268,2]
[364124853,1749012636334,-452.65232285,0.00020269,2]
[364124854,1749012636344,-440.0,0.00020269,2]
[364124855,1749012636354,-551.71104593,0.00020269,2]
[364124856,1749012636364,-343.18644927,0.00020269,2]
[364124857,1749012636374,-440.0,0.00020269,2]
[364124858,1749012636386,-440.0,0.00020269,2]
[364124859,1749012636395,-420.0,0.00020269,2]
[364124860,1749012636404,-420.0,0.00020269,2]
[364124861,1749012636415,-440.0,0.00020269,2]
[364124862,1749012636424,-442.40356351,0.00020269,2]
[364124863,1749012636433,-440.0,0.00020269,2]